fUSD/lending_fUSD_20250930
["ID","MTS","AMOUNT","RATE_DAILY","PERIOD"]
[388593484,1759247450204,-790.24,0.00019178,2]
[388593485,1759247450214,-500.0,0.00019178,2]
[388593486,1759247450223,-500.0,0.00019178,2]
[388593487,1759247450233,-500.0,0.00019178,2]
[388593488,1759247450244,-500.0,0.00019178,2]
[388593489,1759247450254,-257.27735958,0.00019178,2]
[388593490,1759247450263,-500.0,0.00019178,2]
[388593491,1759247450273,-500.0,0.00019178,2]
[388593492,1759247450283,-500.0,0.00019178,2]
[388593493,1759247450292,-2343.94,0.00019178,2]
[388593494,1759247450302,-338.8847235,0.00019178,2]
[388593495,1759247450312,-2343.94,0.00019178,2]
[388593496,1759247450322,-2068.14,0.00019178,2]
[388593497,1759247450334,-2343.94,0.00019178,2]
[388593498,1759247450344,-2343.94,0.00019178,2]
[388593499,1759247450354,-2343.94,0.00019178,2]
[388593500,1759247450364,-1000.0,0.00019178,2]
[388593501,1759247450378,-2343.94,0.00019178,2]
[388593502,1759247450392,-2343.94,0.00019178,2]
[388593503,1759247450402,-2343.94,0.00019178,2]
[388593504,1759247450411,-2343.94,0.00019178,2]
[388593505,1759247450422,-2343.94,0.00019178,2]
[388593506,1759247450432,-2343.94,0.00019178,2]
[388593507,1759247450442,-2343.94,0.00019178,2]
[388593508,1759247450452,-2343.94,0.00019178,2]
[388593509,1759247450462,-2343.94,0.00019178,2]
[388593510,1759247450473,-2343.94,0.00019178,2]
[388593511,1759247450483,-2343.94,0.00019178,2]
[388593512,1759247450493,-2343.94,0.00019178,2]
[388593513,1759247450503,-2343.94,0.00019178,2]
[388593514,1759247450513,-2343.94,0.00019178,2]
[388593515,1759247450523,-2343.94,0.00019178,2]
[388593516,1759247450533,-500.0,0.00019178,2]
[388593517,1759247450543,-2343.94,0.00019178,2]
[388593518,1759247450552,-500.0,0.00019178,2]
[388593519,1759247450562,-2343.94,0.00019178,2]
[388593520,1759247450573,-2343.94,0.00019178,2]
[388593521,1759247450584,-2344.02339971,0.00019178,2]
[388593522,1759247450594,-2634.78,0.00019178,2]
[388593523,1759247450604,-500.0,0.00019178,2]
[388593524,1759247450614,-500.0,0.00019178,2]
[388593525,1759247450624,-664.52,0.00019178,2]
[388593526,1759247450635,-500.0,0.00019178,2]
[388593527,1759247450646,-500.0,0.00019178,2]
[388593528,1759247450656,-500.0,0.00019178,2]
[388593529,1759247450666,-1524.86,0.00019178,2]
[388593530,1759247450676,-500.0,0.00019178,2]
[388593531,1759247450685,-951.17,0.00019178,2]
[388593532,1759247450695,-500.0,0.00019178,2]
[388593533,1759247450705,-500.0,0.00019178,2]
[388593534,1759247450715,-431.94927674,0.00019178,2]
[388593535,1759247450724,-500.0,0.00019178,2]
[388593536,1759247450734,-500.0,0.00019178,2]
[388593537,1759247450743,-814.37,0.00019178,2]
[388593538,1759247450753,-696.16,0.00019178,2]
[388593539,1759247450763,-500.0,0.00019178,2]
[388593540,1759247450772,-500.0,0.00019178,2]
[388593541,1759247450783,-500.0,0.00019178,2]
[388593542,1759247450793,-500.0,0.00019178,2]
[388593543,1759247450803,-500.0,0.00019178,2]
[388593544,1759247450814,-500.0,0.00019178,2]
[388593545,1759247450824,-725.3,0.00019178,2]
[388593546,1759247450834,-500.0,0.00019178,2]
[388593547,1759247450844,-1359.1,0.00019178,2]
[388593548,1759247450854,-677.04,0.00019178,2]
[388593549,1759247450863,-2119.5,0.00019178,2]
[388593550,1759247450873,-500.0,0.00019178,2]
[388593551,1759247450882,-703.63,0.00019178,2]
[388593552,1759247450892,-500.0,0.00019178,2]
[388593553,1759247450902,-500.0,0.00019178,2]
[388593554,1759247450911,-1348.63,0.00019178,2]
[388593555,1759247450921,-500.0,0.00019178,2]
[388593556,1759247450931,-516.27,0.00019178,2]
[388593557,1759247450940,-500.0,0.00019178,2]
[388593558,1759247450949,-1643.07,0.00019178,2]
[388593559,1759247450959,-500.0,0.00019178,2]
[388593560,1759247450969,-500.0,0.00019178,2]
[388593561,1759247450982,-500.0,0.00019178,2]
[388593562,1759247450992,-1302.5,0.00019178,2]
[388593563,1759247451002,-500.0,0.00019178,2]
[388593564,1759247451012,-174.33644408,0.00019178,2]
[388593565,1759247451023,-500.0,0.00019178,2]
[388593566,1759247451032,-724.28,0.00019178,2]
[388593567,1759247451042,-500.0,0.00019178,2]
[388593568,1759247451053,-500.0,0.00019178,2]
[388593569,1759247451063,-900.19,0.00019178,2]
[388593570,1759247451072,-1199.6,0.00019178,2]
[388593571,1759247451082,-500.0,0.00019178,2]
[388593572,1759247451091,-500.0,0.00019178,2]
[388593573,1759247451100,-500.0,0.00019178,2]
[388593574,1759247451110,-925.79,0.00019178,2]
[388593575,1759247451120,-574.14,0.00019178,2]
[388593576,1759247451130,-500.0,0.00019178,2]
[388593577,1759247451140,-500.0,0.00019178,2]
[388593578,1759247451149,-500.0,0.00019178,2]
[388593579,1759247451159,-500.0,0.00019178,2]
[388593580,1759247451169,-500.0,0.00019178,2]
[388593581,1759247451179,-500.0,0.00019178,2]
[388593582,1759247451187,-500.0,0.00019178,2]
[388593583,1759247451197,-500.0,0.00019178,2]
[388593584,1759247451206,-500.0,0.00019178,2]
[388593585,1759247451216,-720.74,0.00019178,2]
[388593586,1759247451226,-500.0,0.00019178,2]
[388593587,1759247451236,-500.0,0.00019178,2]
[388593588,1759247451245,-500.0,0.00019178,2]
[388593589,1759247451257,-683.71,0.00019178,2]
[388593590,1759247451267,-500.0,0.00019178,2]
[388593591,1759247451278,-500.0,0.00019178,2]
[388593592,1759247451287,-500.0,0.00019178,2]
[388593593,1759247451298,-663.74,0.00019178,2]
[388593594,1759247451308,-500.0,0.00019178,2]
[388593595,1759247451317,-500.0,0.00019178,2]
[388593596,1759247451326,-500.0,0.00019178,2]
[388593597,1759247451337,-300.0,0.00019178,2]
[388593598,1759247451346,-500.0,0.00019178,2]
[388593599,1759247451356,-500.0,0.00019178,2]
[388593600,1759247451366,-500.0,0.00019178,2]
[388593601,1759247451376,-2137.21,0.00019178,2]
[388593602,1759247451386,-335.5750371,0.00019178,2]
[388593603,1759247451395,-1698.43,0.00019178,2]
[388593604,1759247451405,-1698.43,0.00019178,2]
[388593605,1759247451415,-1138.58,0.00019178,2]
[388593606,1759247451424,-1698.43,0.00019178,2]
[388593607,1759247451434,-1698.43,0.00019178,2]
[388593608,1759247451444,-1698.43,0.00019178,2]
[388593609,1759247451453,-1698.43,0.00019178,2]
[388593610,1759247451462,-1698.43,0.00019178,2]
[388593611,1759247451473,-423.50849958,0.00019178,2]
[388593612,1759247451483,-1698.43,0.00019178,2]
[388593613,1759247451492,-1698.43,0.00019178,2]
[388593614,1759247451502,-1698.43,0.00019178,2]
[388593615,1759247451511,-312.48414915,0.00019178,2]
[388593616,1759247451522,-1698.43,0.00019178,2]
[388593617,1759247451532,-1698.43,0.00019178,2]
[388593618,1759247451542,-1698.43,0.00019178,2]
[388593619,1759247451551,-1698.43,0.00019178,2]
[388593620,1759247451561,-500.0,0.00019178,2]
[388593621,1759247451571,-500.0,0.00019178,2]
[388593622,1759247451580,-1698.43,0.00019178,2]
[388593623,1759247451590,-1698.43,0.00019178,2]
[388593624,1759247451600,-1698.43,0.00019178,2]
[388593625,1759247451610,-349.79634847,0.00019178,2]
[388593626,1759247451619,-1698.43,0.00019178,2]
[388593627,1759247451629,-1698.43,0.00019178,2]
[388593628,1759247451638,-1698.43,0.00019178,2]
[388593629,1759247451648,-1698.43,0.00019178,2]
[388593630,1759247451659,-2163.83,0.00019178,2]
[388593631,1759247451669,-1698.43,0.00019178,2]
[388593632,1759247451680,-1698.43,0.00019178,2]
[388593633,1759247451689,-1698.55,0.00019178,2]
[388593634,1759247451699,-500.0,0.00019178,2]
[388593635,1759247451709,-500.0,0.00019178,2]
[388593636,1759247451718,-500.0,0.00019178,2]
[388593637,1759247451727,-500.0,0.00019178,2]
[388593638,1759247451737,-500.0,0.00019178,2]
[388593639,1759247451747,-500.0,0.00019178,2]
[388593640,1759247451755,-500.0,0.00019178,2]
[388593641,1759247451765,-500.0,0.00019178,2]
[388593642,1759247451775,-500.0,0.00019178,2]
[388593643,1759247451784,-500.0,0.00019178,2]
[388593644,1759247451793,-500.0,0.00019178,2]
[388593645,1759247451803,-155.03126903,0.00019178,2]
[388593646,1759247451812,-1104.7,0.00019178,2]
[388593647,1759247451822,-500.0,0.00019178,2]
[388593648,1759247451832,-1149.7,0.00019178,2]
[388593649,1759247451842,-500.0,0.00019178,2]
[388593650,1759247451851,-500.0,0.00019178,2]
[388593651,1759247451860,-500.0,0.00019178,2]
[388593652,1759247451869,-500.0,0.00019178,2]
[388593653,1759247451879,-400.56824953,0.00019178,2]
[388593654,1759247451890,-996.76,0.00019178,2]
[388593655,1759247451905,-500.0,0.00019178,2]
[388593656,1759247451916,-500.0,0.00019178,2]
[388593657,1759247451925,-1028.02,0.00019178,2]
[388593658,1759247451935,-500.0,0.00019178,2]
[388593659,1759247451948,-500.0,0.00019178,2]
[388593660,1759247451957,-538.11,0.00019178,2]
[388593661,1759247451967,-500.0,0.00019178,2]
[388593662,1759247451981,-1774.95,0.00019178,2]
[388593663,1759247451990,-500.0,0.00019178,2]
[388593664,1759247451999,-500.0,0.00019178,2]
[388593665,1759247452010,-500.0,0.00019178,2]
[388593666,1759247452019,-500.0,0.00019178,2]
[388593667,1759247452029,-796.2,0.00019178,2]
[388593668,1759247452039,-500.0,0.00019178,2]
[388593669,1759247452050,-500.0,0.00019178,2]
[388593670,1759247452060,-1087.15,0.00019178,2]
[388593671,1759247452071,-500.0,0.00019178,2]
[388593672,1759247452080,-500.0,0.00019178,2]
[388593673,1759247452090,-500.0,0.00019178,2]
[388593674,1759247452099,-500.0,0.00019178,2]
[388593675,1759247452109,-500.0,0.00019178,2]
[388593676,1759247452119,-500.0,0.00019178,2]
[388593677,1759247452129,-500.0,0.00019178,2]
[388593678,1759247452140,-500.0,0.00019178,2]
[388593679,1759247452149,-896.95,0.00019178,2]
[388593680,1759247452159,-500.0,0.00019178,2]
[388593681,1759247452169,-500.0,0.00019178,2]
[388593682,1759247452178,-553.02,0.00019178,2]
[388593683,1759247452187,-1276.67,0.00019178,2]
[388593684,1759247452197,-2472.2,0.00019178,2]
[388593685,1759247452206,-500.0,0.00019178,2]
[388593686,1759247452216,-500.0,0.00019178,2]
[388593687,1759247452225,-500.0,0.00019178,2]
[388593688,1759247452235,-696.29,0.00019178,2]
[388593689,1759247452245,-564.72,0.00019178,2]
[388593690,1759247452256,-934.7,0.00019178,2]
[388593691,1759247452266,-500.0,0.00019178,2]
[388593692,1759247452277,-500.0,0.00019178,2]
[388593693,1759247452286,-508.04,0.00019178,2]
[388593694,1759247452295,-500.0,0.00019178,2]
[388593695,1759247452304,-500.0,0.00019178,2]
[388593696,1759247452314,-1525.01,0.00019178,2]
[388593697,1759247452323,-500.0,0.00019178,2]
[388593698,1759247452333,-500.0,0.00019178,2]
[388593699,1759247452343,-500.0,0.00019178,2]
[388593700,1759247452352,-577.22,0.00019178,2]
[388593701,1759247452361,-500.0,0.00019178,2]
[388593702,1759247452371,-500.0,0.00019178,2]
[388593703,1759247452380,-500.0,0.00019178,2]
[388593704,1759247452390,-971.04,0.00019178,2]
[388593705,1759247452399,-500.0,0.00019178,2]
[388593706,1759247452408,-500.0,0.00019178,2]
[388593707,1759247452418,-500.0,0.00019178,2]
[388593708,1759247452427,-500.0,0.00019178,2]
[388593709,1759247452436,-500.0,0.00019178,2]
[388593710,1759247452448,-500.0,0.00019178,2]
[388593711,1759247452459,-500.0,0.00019178,2]
[388593712,1759247452468,-500.0,0.00019178,2]
[388593713,1759247452478,-1083.36,0.00019178,2]
[388593714,1759247452487,-2560.25,0.00019178,2]
[388593715,1759247452496,-1360.79,0.00019178,2]
[388593716,1759247452506,-1589.68,0.00019178,2]
[388593717,1759247452515,-1460.53,0.00019178,2]
[388593718,1759247452525,-500.0,0.00019178,2]
[388593719,1759247452534,-609.66,0.00019178,2]
[388593720,1759247452543,-500.0,0.00019178,2]
[388593721,1759247452553,-500.0,0.00019178,2]
[388593722,1759247452562,-2738.42,0.00019178,2]
[388593723,1759247452572,-500.0,0.00019178,2]
[388593724,1759247452581,-500.0,0.00019178,2]
[388593725,1759247452591,-500.0,0.00019178,2]
[388593726,1759247452602,-500.0,0.00019178,2]
[388593727,1759247452611,-571.87,0.00019178,2]
[388593728,1759247452620,-1856.52,0.00019178,2]
[388593729,1759247452630,-500.0,0.00019178,2]
[388593730,1759247452639,-500.0,0.00019178,2]
[388593731,1759247452649,-500.0,0.00019178,2]
[388593732,1759247452660,-500.0,0.00019178,2]
[388593733,1759247452669,-500.0,0.00019178,2]
[388593734,1759247452679,-500.0,0.00019178,2]
[388593735,1759247452689,-500.0,0.00019178,2]
[388593736,1759247452698,-500.0,0.00019178,2]
[388593737,1759247452708,-500.0,0.00019178,2]
[388593738,1759247453029,-500.0,0.00019178,2]
[388593739,1759247453040,-500.0,0.00019178,2]
[388593740,1759247453051,-1622.35,0.00019178,2]
[388593741,1759247453061,-1781.21,0.00019178,2]
[388593742,1759247453071,-244.92841406,0.00019178,2]
[388593743,1759247454009,-577.252398,0.00019178,2]
[388593744,1759247454036,-0.56411103,0.00019178,2]
[388593757,1759247654282,197.0,0.00030137,120]
[388593761,1759247757069,200.0,0.00033031,120]
[388593762,1759247814409,164.23,0.00027271,120]
[388593763,1759247841096,352.41,0.00030137,120]
[388593764,1759247928861,50000.0,0.00033031,60]
[388593765,1759247933539,50000.0,0.00033031,61]
[388593766,1759247937343,50000.0,0.00033031,62]
[388593767,1759247940735,50000.0,0.00033031,63]
[388593768,1759247944091,50000.0,0.00033031,64]
[388593769,1759247955606,174.07,9.042e-05,2]
[388593770,1759247955862,174.07,0.00012056,2]
[388593771,1759247956090,174.07,0.0001507,2]
[388593772,1759247956421,2022.14,0.00033031,120]
[388593777,1759248075133,1115.24743841,0.00033089,120]
[388593781,1759248158307,643.06,0.00033089,60]
[388593795,1759248631886,-160.0,0.00016889,2]
[388593796,1759248631896,-300.0,0.0001689,2]
[388593797,1759248631906,-250.0,0.00017,2]
[388593798,1759248631916,-187.140055,0.00017259,2]
[388593799,1759248632008,-105.859945,0.00017259,2]
[388593800,1759248632020,-1200.0,0.00017259,2]
[388593801,1759248632030,-151.41267065,0.0001726,2]
[388593802,1759248632040,-98.56326903,0.0001726,2]
[388593803,1759248632131,-51.43673097,0.0001726,2]
[388593804,1759248632141,-150.0,0.0001726,2]
[388593805,1759248632151,-150.0,0.0001726,2]
[388593806,1759248632160,-150.0,0.0001726,2]
[388593807,1759248632170,-150.0,0.0001726,2]
[388593808,1759248632179,-186.02090867,0.0001726,2]
[388593809,1759248632189,-150.0,0.0001726,2]
[388593810,1759248632198,-1119.05155828,0.00017362,2]
[388593811,1759248632207,-18814.71574096,0.00017363,2]
[388593826,1759248637775,-2229.5112231,0.00017363,2]
[388593828,1759248638057,-730.38987915,0.00017363,2]
[388593961,1759248639794,-11089.6651514,0.00017363,2]
[388593962,1759248639806,-605.05660918,0.00017363,2]
[388593963,1759248639970,-65192.4320461,0.00017363,2]
[388593964,1759248639980,-3258.99118503,0.00017365,2]
[388593965,1759248639989,-3258.99118503,0.00017365,2]
[388593966,1759248639999,-12762.30860332,0.00017369,2]
[388593967,1759248640008,-12868.47569395,0.0001737,2]
[388593968,1759248640017,-1116.18399785,0.00017371,2]
[388593969,1759248640026,-7391.64692759,0.00017372,2]
[388593970,1759248640035,-42436.36847128,0.00017373,2]
[388593971,1759248640046,-1736.22050812,0.00017373,2]
[388593972,1759248640057,-54489.18167049,0.00017373,2]
[388593973,1759248640066,-12762.30860332,0.00017374,2]
[388593974,1759248640075,-12868.47569395,0.00017378,2]
[388593975,1759248640084,-12868.47569395,0.00017384,2]
[388593976,1759248640092,-250.75864575,0.00017388,2]
[388593977,1759248640101,-1119.05155828,0.00017388,2]
[388593978,1759248640110,-5189.00989129,0.00017392,2]
[388593979,1759248640119,-3258.99118503,0.00017393,2]
[388593980,1759248640128,-5189.00989129,0.00017395,2]
[388593981,1759248640138,-12868.47569395,0.00017395,2]
[388593982,1759248640149,-5983.08676014,0.00017395,2]
[388593983,1759248640158,-225.5138452,0.00017396,2]
[388593984,1759248640167,-225.5138452,0.00017398,2]
[388593985,1759248640177,-4362.27474948,0.00017399,2]
[388593986,1759248640186,-12868.47569395,0.00017399,2]
[388593987,1759248640196,-250.75864575,0.00017401,2]
[388593988,1759248640205,-7391.64692759,0.00017401,2]
[388593989,1759248640215,-250.75864575,0.00017416,2]
[388593990,1759248640224,-5983.08676014,0.00017416,2]
[388593991,1759248640233,-5189.00989129,0.00017416,2]
[388593992,1759248640243,-7391.64692759,0.00017419,2]
[388593993,1759248640252,-4362.27474948,0.00017421,2]
[388593994,1759248640262,-225.5138452,0.00017422,2]
[388593995,1759248640271,-12762.30860332,0.00017427,2]
[388593996,1759248640280,-1119.05155828,0.00017431,2]
[388593997,1759248640290,-1119.05155828,0.00017432,2]
[388593998,1759248640299,-98661.77064989,0.00017434,2]
[388593999,1759248640309,-5983.08676014,0.00017434,2]
[388594000,1759248640318,-5189.00989129,0.00017436,2]
[388594001,1759248640327,-250.75864575,0.0001744,2]
[388594002,1759248640336,-225.5138452,0.0001744,2]
[388594003,1759248640347,-5983.08676014,0.00017441,2]
[388594004,1759248640356,-7391.64692759,0.00017442,2]
[388594005,1759248640365,-225.5138452,0.00017451,2]
[388594006,1759248640375,-3258.99118503,0.00017451,2]
[388594007,1759248640384,-1119.05155828,0.00017459,2]
[388594008,1759248640393,-4362.27474948,0.00017459,2]
[388594009,1759248640402,-4362.27474948,0.00017463,2]
[388594010,1759248640412,-12762.30860332,0.00017468,2]
[388594011,1759248640420,-12762.30860332,0.00017469,2]
[388594012,1759248640430,-98661.77064989,0.00017471,2]
[388594013,1759248640440,-250.75864575,0.00017472,2]
[388594014,1759248640449,-1116.18399785,0.00017472,2]
[388594015,1759248640459,-1116.18399785,0.00017478,2]
[388594016,1759248640467,-5983.08676014,0.00017483,2]
[388594017,1759248640477,-5189.00989129,0.00017489,2]
[388594018,1759248640486,-1116.18399785,0.00017489,2]
[388594019,1759248640496,-3258.99118503,0.00017489,2]
[388594020,1759248640506,-1116.18399785,0.00017495,2]
[388594021,1759248640515,-4362.27474948,0.00017495,2]
[388594022,1759248640525,-7391.64692759,0.00017498,2]
[388594023,1759248640534,-98661.77064989,0.00017499,2]
[388594024,1759248640544,-4431.99,0.00017641,2]
[388594025,1759248640553,-371.190671,0.00017684,2]
[388594026,1759248640567,-150.0,0.000177,2]
[388594027,1759248640577,-505.0,0.00017863,2]
[388594028,1759248640587,-281.7,0.00017875,2]
[388594029,1759248640598,-1747.65,0.00017875,2]
[388594030,1759248640607,-200.0,0.00017915,2]
[388594031,1759248640616,-150.0,0.00017963,7]
[388594032,1759248640626,-174.07,0.00018084,2]
[388594033,1759248640636,-176.18,0.00018096,2]
[388594034,1759248640645,-1000.0,0.0001817,2]
[388594035,1759248640655,-164.23,0.00018181,2]
[388594036,1759248640664,-503.24,0.0001829,2]
[388594037,1759248640673,-11501.9,0.00018382,2]
[388594038,1759248640682,-411.15235887,0.00018485,2]
[388594039,1759248640692,-474.52590314,0.00018547,2]
[388594040,1759248640702,-300.0,0.00018578,2]
[388594041,1759248640711,-152.0,0.00018578,3]
[388594042,1759248640721,-1000.0,0.0001863,2]
[388594043,1759248640731,-200.0,0.0001874,2]
[388594044,1759248640740,-200.0,0.0001874,2]
[388594045,1759248640749,-165.78343445,0.0001874,2]
[388594046,1759248640759,-151.0,0.0001874,2]
[388594047,1759248640768,-151.0,0.0001874,2]
[388594048,1759248640777,-200.0,0.0001874,2]
[388594049,1759248640787,-12934.51971392,0.00018742,2]
[388594050,1759248640796,-157.0,0.0001875,2]
[388594051,1759248640806,-9000.0,0.00018751,2]
[388594052,1759248640816,-322.6107,0.00018751,2]
[388594053,1759248640826,-601.3376128,0.00018751,2]
[388594054,1759248640835,-151.0,0.00018751,2]
[388594055,1759248640845,-500.0,0.00018751,2]
[388594056,1759248640855,-7965.41053268,0.00018751,2]
[388594057,1759248640865,-160.0,0.00018751,2]
[388594058,1759248640874,-500.0,0.00018751,2]
[388594059,1759248640883,-500.0,0.00018751,2]
[388594060,1759248640892,-500.0,0.00018751,2]
[388594061,1759248640902,-500.0,0.00018751,2]
[388594062,1759248640912,-500.0,0.00018751,2]
[388594063,1759248640921,-500.0,0.00018751,2]
[388594064,1759248641225,-206.42693506,0.00018751,2]
[388594065,1759248641245,-500.0,0.00018751,2]
[388594066,1759248641254,-500.0,0.00018751,2]
[388594067,1759248641264,-500.0,0.00018751,2]
[388594068,1759248641274,-500.0,0.00018751,2]
[388594069,1759248641284,-500.0,0.00018751,2]
[388594070,1759248641294,-500.0,0.00018751,2]
[388594071,1759248641303,-500.0,0.00018751,2]
[388594072,1759248641312,-500.0,0.00018751,2]
[388594073,1759248641321,-370.49628111,0.00018751,2]
[388594074,1759248641331,-578.20924308,0.00018751,2]
[388594075,1759248641340,-231.28369723,0.00018751,2]
[388594076,1759248641350,-8260.13072239,0.00018806,2]
[388594077,1759248641359,-3045.32,0.00018852,8]
[388594078,1759248641368,-8565.75555911,0.00018861,2]
[388594079,1759248641378,-150.0,0.0001888,2]
[388594080,1759248641387,-8882.6885148,0.00018916,2]
[388594081,1759248641397,-1680.0,0.00018939,2]
[388594082,1759248641406,-500.0,0.0001897,2]
[388594083,1759248641415,-500.0,0.0001897,2]
[388594084,1759248641424,-422.63031559,0.0001897,2]
[388594085,1759248641433,-5994.77338709,0.00018971,2]
[388594086,1759248641443,-33403.50994939,0.00018978,2]
[388594087,1759248641452,-176.18,0.00019,2]
[388594088,1759248641461,-521.32114307,0.00019073,2]
[388594089,1759248641471,-763.25364845,0.00019077,2]
[388594090,1759248641480,-2500.0,0.00019077,2]
[388594091,1759248641490,-160.34027331,0.00019078,2]
[388594092,1759248641499,-583.45586267,0.00019078,2]
[388594093,1759248641509,-731.659294,0.00019078,2]
[388594094,1759248641520,-655.72556524,0.00019078,2]
[388594095,1759248641529,-159.7005265,0.00019078,2]
[388594096,1759248641539,-165.05555291,0.00019078,2]
[388594097,1759248641548,-884.62987624,0.00019078,2]
[388594098,1759248641561,-375.1713668,0.00019078,2]
[388594099,1759248641570,-1000.0,0.00019078,2]
[388594100,1759248641579,-67866.052,0.00019078,2]
[388594101,1759248641589,-5000.0,0.00019078,2]
[388594102,1759248641601,-521.32114307,0.00019104,2]
[388594103,1759248641610,-521.32114307,0.00019135,2]
[388594104,1759248641620,-731.65929396,0.00019139,2]
[388594105,1759248641630,-500.0,0.00019159,2]
[388594106,1759248641642,-521.32114307,0.00019166,2]
[388594107,1759248641652,-215.08852705,0.00019168,2]
[388594108,1759248641661,-500.0,0.00019173,2]
[388594109,1759248641671,-500.0,0.00019173,2]
[388594110,1759248641680,-500.0,0.00019173,2]
[388594111,1759248641690,-159.983392,0.00019173,2]
[388594112,1759248641700,-151.0,0.00019175,2]
[388594113,1759248641709,-151.0,0.00019175,2]
[388594114,1759248641719,-372.26499408,0.00019176,2]
[388594115,1759248641728,-481.30402631,0.00019176,2]
[388594116,1759248641738,-170.24351048,0.00019176,2]
[388594117,1759248641747,-182.95909197,0.00019176,2]
[388594118,1759248641756,-236033.2235589,0.00019177,2]
[388594119,1759248641766,-61765.51004368,0.00019178,2]
[388594120,1759248642603,-2082.43,0.00019178,2]
[388594121,1759248642644,-3959.18348081,0.00019178,2]
[388594124,1759248642721,-8328.30427909,0.00019178,2]
[388594125,1759248642732,-2320.318,0.00019178,2]
[388594132,1759248642787,-514.25566906,0.00019178,2]
[388594161,1759248644407,-20713.5863841,0.00019178,2]
[388594162,1759248644465,-31082.84202831,0.00019178,2]
[388594163,1759248644476,-55346.34558827,0.00019178,2]
[388594164,1759248644487,-29335.61532161,0.00019178,2]
[388594165,1759248644499,-3072.87183982,0.00019178,2]
[388594166,1759248644526,-883786.89466503,0.00019178,2]
[388594168,1759248645830,-297.0134,0.00019178,2]
[388594169,1759248645843,-331.01448,0.00019178,2]
[388594170,1759248645858,-1049.015211,0.00019178,2]
[388594171,1759248645870,-4148.976,0.00019178,2]
[388594172,1759248645966,-551715.01373856,0.00019178,2]
[388594173,1759248645976,-875.88012897,0.00019178,2]
[388594174,1759248645986,-1276.80507691,0.00019178,2]
[388594175,1759248645996,-2463.81,0.00019178,2]
[388594176,1759248646006,-500.0,0.00019178,2]
[388594177,1759248646015,-500.0,0.00019178,2]
[388594178,1759248646025,-1081.61,0.00019178,2]
[388594179,1759248646035,-500.0,0.00019178,2]
[388594180,1759248646045,-596.15,0.00019178,2]
[388594181,1759248646055,-983.47,0.00019178,2]
[388594182,1759248646065,-1137.05,0.00019178,2]
[388594183,1759248646075,-847.19,0.00019178,2]
[388594184,1759248646084,-500.0,0.00019178,2]
[388594185,1759248646093,-500.0,0.00019178,2]
[388594186,1759248646105,-800.49,0.00019178,2]
[388594187,1759248646115,-500.0,0.00019178,2]
[388594188,1759248646124,-430.40609924,0.00019178,2]
[388594189,1759248646135,-500.0,0.00019178,2]
[388594190,1759248646145,-500.0,0.00019178,2]
[388594191,1759248646154,-1058.46,0.00019178,2]
[388594192,1759248646164,-500.0,0.00019178,2]
[388594193,1759248646174,-500.0,0.00019178,2]
[388594194,1759248646184,-2888.39,0.00019178,2]
[388594195,1759248646194,-500.0,0.00019178,2]
[388594196,1759248646203,-500.0,0.00019178,2]
[388594197,1759248646212,-500.0,0.00019178,2]
[388594198,1759248646222,-1038.79,0.00019178,2]
[388594199,1759248646232,-500.0,0.00019178,2]
[388594200,1759248646243,-1378.8,0.00019178,2]
[388594201,1759248646253,-500.0,0.00019178,2]
[388594202,1759248646262,-500.0,0.00019178,2]